fUSD/lending_fUSD_20251023
["ID","MTS","AMOUNT","RATE_DAILY","PERIOD"]
[392210012,1761257441067,-250.0,0.0003641,2]
[392210013,1761257441076,-250.0,0.0003641,2]
[392210014,1761257441086,-152.35920153,0.0003641,2]
[392210015,1761257441095,-250.0,0.0003641,2]
[392210016,1761257441105,-250.0,0.0003641,2]
[392210017,1761257441115,-250.0,0.0003641,2]
[392210018,1761257441124,-250.0,0.0003641,2]
[392210019,1761257441134,-250.0,0.0003641,2]
[392210020,1761257441143,-250.0,0.0003641,2]
[392210021,1761257441152,-250.0,0.0003641,2]
[392210022,1761257441162,-250.0,0.0003641,2]
[392210023,1761257441171,-250.0,0.0003641,2]
[392210024,1761257441181,-250.0,0.0003641,2]
[392210025,1761257441191,-250.0,0.0003641,2]
[392210026,1761257441201,-250.0,0.0003641,2]
[392210027,1761257441210,-250.0,0.0003641,2]
[392210028,1761257441219,-250.0,0.0003641,2]
[392210029,1761257441229,-250.0,0.0003641,2]
[392210030,1761257441238,-250.0,0.0003641,2]
[392210031,1761257441247,-250.0,0.0003641,2]
[392210032,1761257441256,-250.0,0.0003641,2]
[392210033,1761257441265,-250.0,0.0003641,2]
[392210034,1761257441275,-277.35679052,0.0003641,2]
[392210035,1761257441284,-151.0,0.0003641,2]
[392210036,1761257441293,-250.0,0.0003641,2]
[392210037,1761257441303,-250.0,0.0003641,2]
[392210038,1761257441313,-250.0,0.0003641,2]
[392210039,1761257441323,-250.0,0.0003641,2]
[392210040,1761257441333,-250.0,0.0003641,2]
[392210041,1761257441344,-250.0,0.0003641,2]
[392210042,1761257441353,-250.0,0.0003641,2]
[392210043,1761257441364,-250.0,0.0003641,2]
[392210044,1761257441373,-250.0,0.0003641,2]
[392210045,1761257441384,-250.0,0.0003641,2]
[392210046,1761257441394,-250.0,0.0003641,2]
[392210047,1761257441404,-265.21687437,0.0003641,2]
[392210048,1761257441413,-500.0,0.0003641,2]
[392210049,1761257441423,-150.0,0.0003641,2]
[392210050,1761257441432,-203.84660669,0.0003641,2]
[392210051,1761257441442,-500.0,0.0003641,2]
[392210052,1761257441452,-150.0,0.0003641,2]
[392210053,1761257441461,-300.0,0.0003641,2]
[392210054,1761257441470,-276.73289559,0.0003641,2]
[392210055,1761257441484,-500.0,0.0003641,2]
[392210056,1761257441495,-150.0,0.0003641,2]
[392210057,1761257441505,-150.0,0.0003641,2]
[392210058,1761257441518,-168.64841958,0.0003641,2]
[392210059,1761257441528,-258.18735467,0.0003641,2]
[392210060,1761257441537,-150.0,0.0003641,2]
[392210061,1761257441547,-150.0,0.0003641,2]
[392210062,1761257441557,-1000.0,0.00036419,2]
[392210063,1761257441569,-178.2709,0.00036419,2]
[392210064,1761257441580,-181.88166078,0.00036429,14]
[392210065,1761257441594,-1038.0593425,0.00036431,30]
[392210066,1761257441604,-450.18242113,0.00036431,7]
[392210067,1761257441614,-500.0,0.00036431,120]
[392210068,1761257441626,-40395.06437317,0.00036432,2]
[392210069,1761257442444,-1.6e-07,0.00036432,2]
[392210070,1761257442456,-7152.0125,0.00036432,2]
[392210071,1761257442471,-51650.42787658,0.00036432,2]
[392210072,1761257442569,-93656.00525009,0.00036432,2]
[392210073,1761257442578,-500.0,0.00036465,2]
[392210074,1761257442587,-150.0,0.00036465,2]
[392210075,1761257442597,-500.0,0.00036465,2]
[392210076,1761257442606,-150.0,0.00036465,2]
[392210077,1761257442615,-300.0,0.00036465,2]
[392210078,1761257442625,-514.91827268,0.00036465,2]
[392210079,1761257442634,-250.0,0.00036465,2]
[392210080,1761257442644,-150.0,0.00036465,2]
[392210081,1761257442653,-150.0,0.00036465,2]
[392210082,1761257442662,-283.0,0.00036466,120]
[392210083,1761257442671,-500.0,0.00036473,5]
[392210084,1761257442680,-500.0,0.00036473,5]
[392210085,1761257442690,-161.23945813,0.00036473,5]
[392210086,1761257442700,-500.0,0.00036473,5]
[392210087,1761257442709,-500.0,0.00036473,5]
[392210088,1761257442718,-500.0,0.00036473,5]
[392210089,1761257442727,-358.50418649,0.00036473,5]
[392210090,1761257442737,-500.0,0.00036473,5]
[392210091,1761257442746,-200.0,0.00036473,5]
[392210092,1761257442755,-500.0,0.00036473,5]
[392210093,1761257442764,-500.0,0.00036473,5]
[392210094,1761257442775,-500.0,0.00036473,5]
[392210095,1761257442784,-530.89090806,0.00036473,5]
[392210096,1761257442793,-500.0,0.00036473,5]
[392210097,1761257442802,-500.0,0.00036473,5]
[392210098,1761257442814,-500.0,0.00036473,5]
[392210099,1761257442825,-500.0,0.00036473,5]
[392210100,1761257442835,-500.0,0.00036473,5]
[392210102,1761257442845,-283.0,0.00036499,7]
[392210104,1761257442855,-500.0,0.00036518,30]
[392210105,1761257442864,-500.0,0.00036518,120]
[392210106,1761257442874,-500.0,0.0003652,2]
[392210107,1761257442885,-150.0,0.0003652,2]
[392210108,1761257442896,-500.0,0.0003652,2]
[392210109,1761257442906,-150.0,0.0003652,2]
[392210110,1761257442918,-300.0,0.0003652,2]
[392210111,1761257442927,-150.0,0.0003652,2]
[392210112,1761257442936,-227.45629099,0.0003652,2]
[392210113,1761257442946,-500.0,0.00036574,2]
[392210114,1761257442956,-500.0,0.00036574,2]
[392210116,1761257442966,-269.22652821,0.00036574,2]
[392210118,1761257442976,-300.0,0.00036574,2]
[392210119,1761257442986,-150.0,0.00036574,2]
[392210121,1761257442995,-15692.9169309,0.00036591,3]
[392210122,1761257443005,-500.0,0.00036601,30]
[392210123,1761257443014,-500.0,0.00036601,30]
[392210124,1761257443024,-500.0,0.00036601,30]
[392210125,1761257443033,-500.0,0.00036601,30]
[392210126,1761257443043,-500.0,0.00036601,30]
[392210127,1761257443052,-500.0,0.00036601,30]
[392210128,1761257443061,-500.0,0.00036601,30]
[392210129,1761257443071,-500.0,0.00036601,30]
[392210132,1761257443080,-500.0,0.00036601,30]
[392210133,1761257443090,-500.0,0.00036601,30]
[392210135,1761257443099,-500.0,0.00036601,30]
[392210137,1761257443108,-500.0,0.00036601,30]
[392210139,1761257443118,-500.0,0.00036601,30]
[392210140,1761257443127,-500.0,0.00036601,30]
[392210141,1761257443141,-500.0,0.00036601,120]
[392210142,1761257443151,-502.58030001,0.00036601,120]
[392210144,1761257443160,-208.047,0.00036609,2]
[392210146,1761257443170,-500.0,0.00036613,30]
[392210148,1761257443180,-513.8955225,0.00036623,30]
[392210149,1761257443191,-500.0,0.00036629,2]
[392210150,1761257443200,-500.0,0.00036629,2]
[392210151,1761257443210,-300.0,0.00036629,2]
[392210152,1761257443219,-164.0,0.00036629,2]
[392210153,1761257443229,-283.0,0.00036671,2]
[392210154,1761257443238,-150.0,0.00036682,5]
[392210155,1761257443249,-150.0,0.00036682,5]
[392210156,1761257443262,-150.0,0.00036682,5]
[392210157,1761257443272,-150.0,0.00036682,5]
[392210158,1761257443282,-150.0,0.00036682,5]
[392210159,1761257443293,-150.0,0.00036682,5]
[392210160,1761257443304,-151.53552264,0.00036682,5]
[392210161,1761257443314,-150.0,0.00036682,5]
[392210162,1761257443325,-150.0,0.00036682,5]
[392210163,1761257443335,-150.0,0.00036682,5]
[392210164,1761257443345,-150.0,0.00036682,5]
[392210165,1761257443357,-200.0,0.00036682,5]
[392210166,1761257443368,-168.0,0.00036682,2]
[392210167,1761257443378,-251.82012324,0.00036684,2]
[392210168,1761257443389,-500.0,0.00036684,2]
[392210169,1761257443399,-300.0,0.00036684,2]
[392210170,1761257443409,-150.0,0.00036737,5]
[392210171,1761257443419,-150.0,0.00036737,5]
[392210172,1761257443428,-150.0,0.00036737,5]
[392210173,1761257443438,-150.0,0.00036737,5]
[392210174,1761257443447,-150.0,0.00036737,5]
[392210175,1761257443458,-150.0,0.00036737,5]
[392210176,1761257443468,-202.56612552,0.00036737,5]
[392210177,1761257443478,-150.0,0.00036737,5]
[392210178,1761257443489,-150.0,0.00036737,5]
[392210179,1761257443499,-369.23968107,0.00036739,2]
[392210180,1761257443509,-168.0,0.00036775,120]
[392210181,1761257443523,-151.99993636,0.00036792,5]
[392210182,1761257443533,-273.92000297,0.00036792,5]
[392210183,1761257443542,-150.0,0.00036792,5]
[392210184,1761257443552,-150.0,0.00036792,5]
[392210185,1761257443563,-150.0,0.00036792,5]
[392210186,1761257443572,-283.0,0.00036839,2]
[392210187,1761257443583,-476.23156132,0.00036846,2]
[392210188,1761257443594,-150.0,0.00036846,5]
[392210189,1761257443603,-200.0,0.00036846,5]
[392210191,1761257443613,-181.75820498,0.00036846,5]
[392210192,1761257443623,-187.0,0.00036855,2]
[392210193,1761257443634,-283.0,0.00036931,2]
[392210194,1761257443645,-200.0,0.00036958,2]
[392210195,1761257443654,-600.0,0.00036958,2]
[392210196,1761257443664,-151.0,0.00036958,2]
[392210197,1761257443673,-217.15233878,0.00036958,2]
[392210198,1761257443683,-595.37131296,0.00036958,2]
[392210200,1761257443693,-200.0,0.00036958,2]
[392210201,1761257443704,-151.96430448,0.00036958,2]
[392210202,1761257443714,-1000.0,0.00037021,5]
[392210203,1761257443724,-1000.0,0.00037021,5]
[392210204,1761257443734,-1000.0,0.00037021,5]
[392210205,1761257443743,-1000.0,0.00037021,5]
[392210206,1761257443754,-1000.0,0.00037021,5]
[392210207,1761257443763,-1000.0,0.00037021,5]
[392210208,1761257443774,-1000.0,0.00037021,5]
[392210209,1761257443783,-502.12364797,0.00037021,5]
[392210210,1761257443795,-1001.38371264,0.00037021,5]
[392210211,1761257443804,-1000.0,0.00037021,5]
[392210212,1761257443816,-647.07500476,0.00037021,5]
[392210213,1761257443825,-1000.0,0.00037021,5]
[392210214,1761257443835,-1000.0,0.00037021,5]
[392210215,1761257443845,-300.0,0.0003706,120]
[392210216,1761257443855,-400.0,0.00037158,5]
[392210217,1761257443866,-15692.9169309,0.00037174,3]
[392210218,1761257443877,-16278.87244647,0.00037184,2]
[392210219,1761257443887,-283.0,0.0003724,2]
[392210220,1761257443897,-696.018,0.00037349,120]
[392210221,1761257443906,-766.05454374,0.00037371,2]
[392210222,1761257443917,-283.0,0.00037371,2]
[392210223,1761257443927,-283.0,0.00037403,7]
[392210224,1761257443937,-228.18974246,0.00037462,4]
[392210225,1761257443948,-200.0,0.00037506,2]
[392210226,1761257443957,-151.0,0.00037506,2]
[392210227,1761257443967,-225.18697532,0.00037506,2]
[392210228,1761257443977,-617.40005154,0.00037506,2]
[392210229,1761257443986,-200.0,0.00037506,2]
[392210230,1761257443997,-283.0,0.00037527,2]
[392210231,1761257444006,-289.76729964,0.00037568,5]
[392210232,1761257444016,-1502.90900814,0.00037568,5]
[392210233,1761257444028,-1000.0,0.00037568,5]
[392210234,1761257444039,-502.04286902,0.00037568,5]
[392210235,1761257444048,-1636.67947853,0.00037568,5]
[392210236,1761257444059,-1500.0,0.00037568,5]
[392210237,1761257444070,-1198.69932731,0.00037568,5]
[392210238,1761257444081,-1500.0,0.00037568,5]
[392210239,1761257444091,-1000.0,0.00037568,5]
[392210240,1761257444317,-501.0,0.00037609,120]
[392210241,1761257444348,-283.0,0.00037721,2]
[392210242,1761257444359,-334.5472959,0.00037779,2]
[392210243,1761257444368,-287.61899177,0.00037779,2]
[392210244,1761257444378,-168.0,0.000378,7]
[392210245,1761257444389,-168.0,0.00037827,2]
[392210246,1761257444398,-600.0,0.00037842,5]
[392210247,1761257444408,-283.0,0.00037898,7]
[392210248,1761257444418,-168.0,0.00037924,2]
[392210249,1761257444428,-2420.96452926,0.00037954,2]
[392210250,1761257444437,-15692.9169309,0.00037993,3]
[392210251,1761257444447,-16278.87244647,0.00038003,2]
[392210252,1761257444457,-200.0,0.00038054,2]
[392210253,1761257444467,-151.0,0.00038054,2]
[392210254,1761257444478,-297.11438778,0.00038054,2]
[392210255,1761257444488,-640.24385345,0.00038054,2]
[392210256,1761257444498,-200.0,0.00038054,2]
[392210257,1761257444507,-726.67837332,0.000381,33]
[392210258,1761257444523,-2008.87349461,0.00038116,5]
[392210259,1761257444532,-161.91979002,0.00038199,2]
[392210260,1761257444543,-15196.8347643,0.00038422,3]
[392210261,1761257444553,-766.05454374,0.00038431,2]
[392210262,1761257444563,-800.0,0.00038527,5]
[392210263,1761257444572,-2420.96452926,0.00038596,2]
[392210264,1761257444582,-200.0,0.00038602,2]
[392210265,1761257444592,-151.0,0.00038602,2]
[392210266,1761257444602,-663.93287602,0.00038602,2]
[392210267,1761257444612,-200.0,0.00038602,2]
[392210268,1761257444622,-502.0,0.00038609,120]
[392210269,1761257444631,-164.0,0.000387,120]
[392210270,1761257444641,-150.0,0.00038811,4]
[392210271,1761257444651,-150.0,0.00038811,4]
[392210272,1761257444660,-150.0,0.00038811,4]
[392210273,1761257444669,-150.0,0.00038811,4]
[392210274,1761257444679,-150.0,0.00038811,4]
[392210275,1761257444688,-476.23156132,0.00038812,3]
[392210276,1761257444698,-16278.87244647,0.00038822,2]
[392210277,1761257444707,-1059.84183953,0.00038919,6]
[392210278,1761257444717,-461.48609924,0.0003892,6]
[392210279,1761257444726,-15692.9169309,0.00039138,3]
[392210280,1761257444736,-346.92554585,0.00039148,2]
[392210281,1761257444745,-298.26089446,0.00039148,2]
[392210282,1761257444755,-207.4,0.00039149,2]
[392210283,1761257444766,-747.8093786,0.00039149,2]
[392210284,1761257444776,-151.0,0.0003915,2]
[392210285,1761257444785,-688.49839244,0.0003915,2]
[392210286,1761257444795,-200.0,0.0003915,2]
[392210287,1761257444805,-1002.8170051,0.00039212,5]
[392210288,1761257444815,-15196.8347643,0.00039237,3]
[392210289,1761257444825,-2420.96452926,0.00039239,2]
[392210290,1761257444835,-4073.4734318,0.00039247,2]
[392210291,1761257444845,-2462.8213451,0.00039335,2]
[392210292,1761257444856,-333.53,0.00039478,120]
[392210293,1761257444866,-300.0,0.00039478,7]
[392210294,1761257444876,-2118.02,0.00039478,37]
[392210295,1761257444887,-287.75,0.00039478,2]
[392210296,1761257444897,-1124.5,0.00039478,7]
[392210297,1761257444908,-3115.66,0.00039478,2]
[392210298,1761257444918,-200.0,0.00039478,2]
[392210299,1761257444929,-889.39,0.00039478,2]
[392210300,1761257444939,-271.45,0.00039478,2]
[392210301,1761257444950,-4188.78,0.00039478,2]
[392210302,1761257444962,-766.05454374,0.00039492,2]
[392210303,1761257444972,-256.50294306,0.000395,14]
[392210304,1761257444982,-31385.8338618,0.00039592,3]
[392210305,1761257444992,-30393.6695286,0.00039592,3]
[392210306,1761257445001,-3087.01968,0.000396,2]
[392210307,1761257445011,-53307.156902,0.00039602,2]
[392210308,1761257445021,-503.0,0.00039609,120]
[392210309,1761257445033,-187.12962143,0.0003961,2]
[392210310,1761257445043,-16278.87244647,0.00039641,2]
[392210311,1761257445053,-269.27534245,0.00039698,2]
[392210312,1761257445063,-713.97283296,0.00039698,2]
[392210313,1761257445075,-200.0,0.00039698,2]
[392210314,1761257445085,-15692.9169309,0.0003979,3]
[392210315,1761257445095,-1282.91,0.00039794,2]
[392210316,1761257445104,-3087.01968,0.000398,2]
[392210317,1761257445114,-15196.8347643,0.00039801,3]
[392210318,1761257445124,-300.51,0.0003981,2]
[392210319,1761257445133,-414.24,0.0003981,2]
[392210320,1761257445143,-301.47,0.00039811,2]
[392210321,1761257445152,-414.24,0.00039811,2]
[392210322,1761257445162,-547.46,0.00039811,2]
[392210323,1761257445171,-150.0,0.00039811,2]
[392210324,1761257445181,-2420.96452926,0.00039881,2]
[392210325,1761257445191,-700.0,0.000399,14]
[392210326,1761257445200,-161.62489034,0.00039973,5]
[392210327,1761257445210,-156.39673461,0.00039973,5]
[392210328,1761257445220,-150.0,0.00039973,5]
[392210329,1761257445229,-275.28,0.0003999,14]
[392210330,1761257445239,-31385.8338618,0.0003999,3]
[392210331,1761257445249,-30393.6695286,0.0003999,3]
[392210332,1761257445258,-500.0,0.00039999,120]
[392210333,1761257445268,-80004.97313811,0.0004,120]
[392210334,1761257445277,-3087.01969,0.0004,2]
[392210335,1761257445287,-3087.01969,0.0004005,2]
[392210336,1761257445297,-15692.9169309,0.00040075,3]
[392210337,1761257445306,-15196.8347643,0.00040075,3]
[392210338,1761257445316,-3241.0,0.00040085,5]
[392210339,1761257445326,-475.46,0.00040085,2]
[392210340,1761257445336,-475.46,0.00040085,2]
[392210341,1761257445346,-696.27,0.00040121,2]
[392210342,1761257445355,-792.67827588,0.00040246,2]
[392210343,1761257445365,-200.0,0.00040246,2]
[392210344,1761257445374,-15692.9169309,0.0004028,3]
[392210345,1761257445384,-15196.8347643,0.0004028,3]
[392210346,1761257445394,-8141.11,0.0004029,2]
[392210347,1761257445403,-5969.55,0.0004029,2]
[392210348,1761257445413,-329.93,0.0004029,2]
[392210349,1761257445423,-150.99,0.0004029,30]
[392210350,1761257445432,-12120.42,0.0004029,2]
[392210351,1761257445442,-999.99,0.0004029,2]
[392210352,1761257445452,-9999.99,0.0004029,2]
[392210353,1761257445461,-5500.93,0.0004029,2]
[392210354,1761257445471,-150.99,0.0004029,2]
[392210355,1761257445481,-343.69,0.0004029,2]
[392210356,1761257445490,-3087.01968,0.000403,3]
[392210357,1761257445500,-549.5297211,0.00040328,2]
[392210358,1761257445511,-1000.0,0.00040331,7]
[392210359,1761257445527,-500.0,0.000404,30]
[392210360,1761257445536,-500.0,0.000404,30]
[392210361,1761257445547,-901.07189194,0.000404,30]
[392210362,1761257445556,-500.0,0.000404,30]
[392210363,1761257445567,-500.0,0.000404,30]
[392210364,1761257445577,-500.0,0.000404,30]
[392210365,1761257445587,-500.0,0.000404,30]
[392210366,1761257445599,-500.0,0.000404,30]
[392210367,1761257445609,-500.0,0.000404,30]
[392210368,1761257445619,-845.45062259,0.000404,30]
[392210369,1761257445629,-500.0,0.000404,30]
[392210370,1761257445638,-500.0,0.000404,30]
[392210371,1761257445647,-500.0,0.000404,30]
[392210372,1761257445657,-500.0,0.000404,30]
[392210373,1761257445667,-500.0,0.000404,30]
[392210374,1761257445676,-500.0,0.000404,30]
[392210375,1761257445686,-500.0,0.000404,30]
[392210376,1761257445696,-500.0,0.000404,30]
[392210377,1761257445707,-504.56788982,0.000404,30]
[392210378,1761257445717,-500.0,0.000404,30]
[392210379,1761257445728,-500.0,0.000404,30]
[392210380,1761257445737,-500.0,0.000404,30]
[392210381,1761257445747,-500.0,0.000404,30]
[392210382,1761257445759,-430.74709499,0.000404,30]
[392210383,1761257445768,-500.0,0.000404,30]
[392210384,1761257445777,-560.60224844,0.000404,30]
[392210385,1761257445786,-500.0,0.000404,30]
[392210386,1761257445795,-500.0,0.000404,30]
[392210387,1761257445805,-500.0,0.000404,30]
[392210388,1761257445814,-500.0,0.000404,30]
[392210389,1761257445824,-500.0,0.000404,30]
[392210390,1761257445833,-869.25063572,0.000404,30]
[392210391,1761257445842,-627.12699981,0.000404,30]
[392210392,1761257445851,-500.0,0.000404,30]
[392210394,1761257445860,-500.0,0.000404,30]
[392210395,1761257445870,-500.0,0.000404,30]
[392210396,1761257445879,-503.95003486,0.000404,30]
[392210397,1761257445888,-500.0,0.000404,30]
[392210398,1761257445898,-500.0,0.000404,30]
[392210399,1761257445907,-525.76585025,0.000404,30]
[392210400,1761257445916,-1000.0,0.00040429,7]
[392210401,1761257445925,-15692.9169309,0.00040449,3]
[392210402,1761257445935,-15196.8347643,0.00040449,3]
[392210403,1761257445945,-16278.87244647,0.00040459,15]
[392210404,1761257445954,-359.76179104,0.00040517,2]
[392210405,1761257445964,-309.29654756,0.00040517,2]
[392210406,1761257445973,-201.06096354,0.00040521,5]
[392210408,1761257445984,-2420.96452926,0.00040523,15]
[392210411,1761257445993,-476.23156132,0.0004054,30]
[392210413,1761257446003,-3087.01969,0.0004055,5]
[392210415,1761257446012,-766.05454374,0.00040553,28]
[392210417,1761257446024,-15692.9169309,0.00040559,3]
[392210419,1761257446034,-15196.8347643,0.00040559,3]
[392210421,1761257446043,-1000.0,0.00040569,2]
[392210423,1761257446053,-1000.0,0.00040569,2]
[392210425,1761257446062,-1000.0,0.00040569,2]
[392210428,1761257446071,-1000.0,0.00040569,2]
[392210430,1761257446081,-1000.0,0.00040569,2]
[392210431,1761257446091,-1000.0,0.00040569,2]
[392210433,1761257446100,-1000.0,0.00040569,2]
[392210435,1761257446109,-1000.0,0.00040569,2]
[392210437,1761257446119,-1000.0,0.00040569,2]
[392210439,1761257446128,-1000.0,0.00040569,2]
[392210441,1761257446137,-1000.0,0.00040569,2]
[392210443,1761257446147,-1000.0,0.00040569,2]
[392210445,1761257446156,-1000.0,0.00040569,2]
[392210447,1761257446165,-1000.0,0.00040569,2]
[392210449,1761257446174,-1000.0,0.00040569,2]
[392210451,1761257446186,-1000.0,0.00040569,2]
[392210453,1761257446198,-1000.0,0.00040569,2]
[392210455,1761257446207,-1000.0,0.00040569,2]
[392210456,1761257446216,-1000.0,0.00040569,2]
[392210457,1761257446226,-1000.0,0.00040569,2]
[392210458,1761257446236,-1000.0,0.00040569,2]
[392210459,1761257446245,-1000.0,0.00040569,2]
[392210461,1761257446254,-1000.0,0.00040569,2]
[392210463,1761257446264,-1000.0,0.00040569,2]
[392210465,1761257446273,-1000.0,0.00040569,2]
[392210467,1761257446283,-1000.0,0.00040569,2]
[392210469,1761257446295,-1000.0,0.00040569,2]
[392210471,1761257446304,-1000.0,0.00040569,2]
[392210473,1761257446313,-1000.0,0.00040569,2]
[392210475,1761257446323,-388.06429301,0.00040569,2]
[392210477,1761257446332,-151.55363201,0.00040573,5]
[392210479,1761257446342,-15196.8347643,0.00040589,3]
[392210481,1761257446352,-11894.4344566,0.00040599,2]
[392210483,1761257446361,-504.0,0.00040609,120]
[392210486,1761257446372,-275.683668,0.00040622,120]
[392210488,1761257446382,-265.687019,0.00040622,120]
[392210490,1761257446392,-151.0,0.00040622,120]
[392210492,1761257446401,-200.48304,0.00040622,120]
[392210494,1761257446411,-200.48304,0.00040622,120]
[392210496,1761257446420,-200.48304,0.00040622,120]
[392210498,1761257446429,-200.48304,0.00040622,120]
[392210500,1761257446439,-151.0,0.00040622,120]
[392210502,1761257446448,-201.275282,0.00040622,120]
[392210504,1761257446458,-151.0,0.00040622,120]
[392210506,1761257446467,-547.371462,0.00040622,120]
[392210508,1761257446477,-547.371462,0.00040622,120]
[392210510,1761257446486,-151.0,0.00040622,120]
[392210512,1761257446496,-547.371462,0.00040622,120]
[392210514,1761257446505,-152.379659,0.00040622,10]
[392210516,1761257446519,-547.371462,0.00040622,120]
[392210518,1761257446529,-151.0,0.00040622,120]
[392210520,1761257446539,-272.198777,0.00040622,120]
[392210522,1761257446548,-151.0,0.00040622,120]
[392210523,1761257446558,-151.0,0.00040622,120]
[392210524,1761257446567,-151.0,0.00040622,120]
[392210525,1761257446576,-15692.9169309,0.00040622,3]
[392210526,1761257446586,-481.35,0.00040632,120]
[392210528,1761257446871,-1425.0,0.0004065,2]
[392210529,1761257446937,-836.04,0.00040669,2]
[392210530,1761257446947,-152.06004125,0.00040746,7]
[392210531,1761257446956,-1091.0,0.00040748,5]
[392210532,1761257446965,-200.0,0.00040794,2]
[392210533,1761257446974,-1425.0,0.00040814,2]
[392210534,1761257446984,-1425.0,0.00040819,2]
[392210535,1761257446995,-275.28,0.00040835,14]
[392210536,1761257447005,-1400.0,0.000409,14]
[392210537,1761257447014,-6055.67274096,0.00040906,30]
[392210538,1761257447024,-203.92975285,0.00040939,2]
[392210539,1761257447033,-3279.2692945,0.00040967,2]
[392210540,1761257447043,-1000.0,0.00041058,2]
[392210541,1761257447052,-15692.9169309,0.00041066,3]
[392210542,1761257447062,-15196.8347643,0.00041066,3]
[392210543,1761257447071,-500.0,0.00041073,5]
[392210544,1761257447080,-500.0,0.00041073,5]
[392210545,1761257447089,-500.0,0.00041073,5]
[392210546,1761257447099,-15692.9169309,0.00041076,3]
[392210547,1761257447108,-15196.8347643,0.00041076,3]
[392210548,1761257447117,-688.79,0.00041079,2]
[392210549,1761257447126,-784.02,0.00041079,2]
[392210550,1761257447135,-15692.9169309,0.0004108,3]
[392210551,1761257447145,-15196.8347643,0.0004108,3]
[392210552,1761257447154,-156.0,0.00041085,120]
[392210553,1761257447163,-15692.9169309,0.00041086,3]
[392210554,1761257447173,-15196.8347643,0.00041086,3]
[392210555,1761257447182,-15196.8347643,0.0004109,3]
[392210556,1761257447191,-500.0,0.00041096,120]
[392210557,1761257447201,-500.0,0.00041096,8]
[392210558,1761257447213,-4472.75,0.00041096,120]
[392210559,1761257447224,-500.0,0.00041096,30]
[392210560,1761257447234,-500.0,0.00041096,30]
[392210561,1761257447244,-500.0,0.00041096,30]
[392210562,1761257447253,-500.0,0.00041096,30]
[392210563,1761257447263,-500.0,0.00041096,30]
[392210564,1761257447274,-500.0,0.00041096,30]
[392210565,1761257447283,-500.0,0.00041096,30]
[392210566,1761257447294,-500.0,0.00041096,30]
[392210567,1761257447306,-500.0,0.00041096,30]
[392210568,1761257447316,-500.0,0.00041096,30]
[392210569,1761257447325,-500.0,0.00041096,30]
[392210570,1761257447335,-500.0,0.00041096,30]
[392210571,1761257447345,-500.0,0.00041096,30]
[392210572,1761257447356,-500.0,0.00041096,30]
[392210573,1761257447365,-500.0,0.00041096,30]
[392210574,1761257447375,-500.0,0.00041096,30]
[392210575,1761257447385,-500.0,0.00041096,30]
[392210576,1761257447394,-500.0,0.00041096,30]
[392210577,1761257447403,-500.0,0.00041096,30]
[392210578,1761257447414,-500.0,0.00041096,30]
[392210579,1761257447425,-500.0,0.00041096,30]
[392210580,1761257447435,-500.0,0.00041096,30]
[392210581,1761257447445,-500.0,0.00041096,30]
[392210582,1761257447455,-500.0,0.00041096,30]
[392210583,1761257447464,-500.0,0.00041096,30]
[392210584,1761257447474,-500.0,0.00041096,30]
[392210585,1761257447484,-500.0,0.00041096,30]